fUST/lending_fUST_20240902
["ID","MTS","AMOUNT","RATE_DAILY","PERIOD"]
[336910968,1725240640104,-500.0,0.00024657,2]
[336910969,1725240640114,-500.0,0.00024657,2]
[336910970,1725240640123,-500.0,0.00024657,2]
[336910971,1725240640132,-500.0,0.00024657,2]
[336910972,1725240640142,-500.0,0.00024657,2]
[336910973,1725240640152,-500.0,0.00024657,2]
[336910974,1725240640161,-500.0,0.00024657,2]
[336910975,1725240640171,-614.66,0.00024657,2]
[336910976,1725240640180,-200.0,0.00024657,2]
[336910977,1725240640190,-500.0,0.00024657,2]
[336910978,1725240640199,-500.0,0.00024657,2]
[336910979,1725240640209,-500.0,0.00024657,2]
[336910980,1725240640218,-500.0,0.00024657,2]
[336910981,1725240640227,-573.76,0.00024657,2]
[336910982,1725240640237,-500.0,0.00024657,2]
[336910983,1725240640246,-500.0,0.00024657,2]
[336910984,1725240640257,-500.0,0.00024657,2]
[336910985,1725240640266,-500.0,0.00024657,2]
[336910986,1725240640275,-1608.35,0.00024657,2]
[336910987,1725240640285,-500.0,0.00024657,2]
[336910988,1725240640294,-500.0,0.00024657,2]
[336910989,1725240640303,-530.90616032,0.00024657,2]
[336910990,1725240640312,-500.0,0.00024657,2]
[336910991,1725240640322,-500.0,0.00024657,2]
[336910992,1725240640331,-502.43,0.00024657,2]
[336910993,1725240640341,-500.0,0.00024657,2]
[336910994,1725240640350,-584.28633893,0.00024657,2]
[336910995,1725240640361,-500.0,0.00024657,2]
[336910996,1725240640375,-500.0,0.00024657,2]
[336910997,1725240640384,-500.0,0.00024657,2]
[336910998,1725240640394,-500.0,0.00024657,2]
[336910999,1725240640403,-500.0,0.00024657,2]
[336911000,1725240640414,-500.0,0.00024657,2]
[336911001,1725240640423,-500.0,0.00024657,2]
[336911002,1725240640432,-500.0,0.00024657,2]
[336911003,1725240640442,-500.0,0.00024657,2]
[336911004,1725240640452,-500.0,0.00024657,2]
[336911005,1725240640463,-500.0,0.00024657,2]
[336911006,1725240640472,-500.0,0.00024657,2]
[336911007,1725240640481,-500.0,0.00024657,2]
[336911008,1725240640492,-500.0,0.00024657,2]
[336911009,1725240640503,-500.0,0.00024657,2]
[336911010,1725240640512,-769.07,0.00024657,2]
[336911011,1725240640524,-500.0,0.00024657,2]
[336911012,1725240640533,-500.0,0.00024657,2]
[336911013,1725240640543,-500.0,0.00024657,2]
[336911014,1725240640553,-500.0,0.00024657,2]
[336911015,1725240640563,-500.0,0.00024657,2]
[336911016,1725240640572,-500.0,0.00024657,2]
[336911017,1725240640581,-500.0,0.00024657,2]
[336911018,1725240640590,-1751.26,0.00024657,2]
[336911019,1725240640600,-500.0,0.00024657,2]
[336911020,1725240640609,-442.89816768,0.00024657,2]
[336911021,1725240640618,-500.0,0.00024657,2]
[336911022,1725240640628,-500.0,0.00024657,2]
[336911023,1725240640637,-500.0,0.00024657,2]
[336911024,1725240640646,-500.0,0.00024657,2]
[336911025,1725240640655,-880.15,0.00024657,2]
[336911026,1725240640665,-1118.21,0.00024657,2]
[336911027,1725240640674,-586.63,0.00024657,2]
[336911028,1725240640683,-500.0,0.00024657,2]
[336911029,1725240640693,-500.0,0.00024657,2]
[336911030,1725240640701,-500.0,0.00024657,2]
[336911031,1725240640711,-501.38547877,0.00024657,2]
[336911032,1725240640721,-500.0,0.00024657,2]
[336911033,1725240640731,-500.0,0.00024657,2]
[336911034,1725240640743,-500.0,0.00024657,2]
[336911035,1725240640752,-500.0,0.00024657,2]
[336911036,1725240640761,-500.0,0.00024657,2]
[336911037,1725240640771,-500.0,0.00024657,2]
[336911038,1725240640781,-500.0,0.00024657,2]
[336911039,1725240640792,-500.0,0.00024657,2]
[336911040,1725240640802,-500.0,0.00024657,2]
[336911041,1725240640812,-494.28236029,0.00024657,2]
[336911042,1725240640821,-500.0,0.00024657,2]
[336911043,1725240640830,-500.0,0.00024657,2]
[336911044,1725240640840,-500.0,0.00024657,2]
[336911045,1725240640849,-500.0,0.00024657,2]
[336911046,1725240640859,-500.0,0.00024657,2]
[336911047,1725240640868,-500.0,0.00024657,2]
[336911048,1725240640878,-500.0,0.00024657,2]
[336911049,1725240640887,-500.0,0.00024657,2]
[336911050,1725240640896,-500.0,0.00024657,2]
[336911051,1725240640906,-500.0,0.00024657,2]
[336911052,1725240640915,-1151.71,0.00024657,2]
[336911053,1725240640924,-500.0,0.00024657,2]
[336911054,1725240640933,-500.0,0.00024657,2]
[336911055,1725240640943,-500.0,0.00024657,2]
[336911056,1725240640952,-500.0,0.00024657,2]
[336911057,1725240640961,-500.0,0.00024657,2]
[336911058,1725240640970,-500.0,0.00024657,2]
[336911059,1725240640979,-500.0,0.00024657,2]
[336911060,1725240640989,-500.0,0.00024657,2]
[336911061,1725240640999,-500.0,0.00024657,2]
[336911062,1725240641010,-500.0,0.00024657,2]
[336911063,1725240641019,-500.0,0.00024657,2]
[336911064,1725240641027,-505.5149597,0.00024657,2]
[336911065,1725240641037,-500.0,0.00024657,2]
[336911066,1725240641047,-1629.52,0.00024657,2]
[336911067,1725240641056,-500.0,0.00024657,2]
[336911068,1725240641066,-500.0,0.00024657,2]
[336911069,1725240641076,-500.0,0.00024657,2]
[336911070,1725240641085,-500.0,0.00024657,2]
[336911071,1725240641094,-337.88855092,0.00024657,2]
[336911072,1725240641103,-500.0,0.00024657,2]
[336911073,1725240641112,-783.48,0.00024657,2]
[336911074,1725240641122,-848.27,0.00024657,2]
[336911075,1725240641134,-500.0,0.00024657,2]
[336911076,1725240641143,-500.0,0.00024657,2]
[336911077,1725240641153,-500.0,0.00024657,2]
[336911078,1725240641162,-500.0,0.00024657,2]
[336911079,1725240641172,-955.83,0.00024657,2]
[336911080,1725240641182,-500.0,0.00024657,2]
[336911081,1725240641192,-722.79,0.00024657,2]
[336911082,1725240641201,-500.0,0.00024657,2]
[336911083,1725240641211,-1261.56,0.00024657,2]
[336911084,1725240641221,-500.0,0.00024657,2]
[336911085,1725240641232,-1357.47,0.00024657,2]
[336911086,1725240641244,-500.0,0.00024657,2]
[336911087,1725240641257,-500.0,0.00024657,2]
[336911088,1725240641269,-500.0,0.00024657,2]
[336911089,1725240641278,-1312.49,0.00024657,2]
[336911090,1725240641287,-500.0,0.00024657,2]
[336911091,1725240641296,-500.0,0.00024657,2]
[336911092,1725240641305,-500.0,0.00024657,2]
[336911093,1725240641314,-550.39673309,0.00024657,2]
[336911094,1725240641323,-500.0,0.00024657,2]
[336911095,1725240641332,-500.0,0.00024657,2]
[336911096,1725240641341,-500.0,0.00024657,2]
[336911097,1725240641351,-500.0,0.00024657,2]
[336911098,1725240641360,-500.0,0.00024657,2]
[336911099,1725240641373,-500.0,0.00024657,2]
[336911100,1725240641382,-500.0,0.00024657,2]
[336911101,1725240641391,-500.0,0.00024657,2]
[336911102,1725240641400,-500.0,0.00024657,2]
[336911103,1725240641410,-500.0,0.00024657,2]
[336911104,1725240641421,-500.0,0.00024657,2]
[336911105,1725240641432,-500.0,0.00024657,2]
[336911106,1725240641442,-500.0,0.00024657,2]
[336911107,1725240641453,-500.0,0.00024657,2]
[336911108,1725240641464,-500.0,0.00024657,2]
[336911109,1725240641474,-500.0,0.00024657,2]
[336911110,1725240641483,-500.0,0.00024657,2]
[336911111,1725240641492,-703.22,0.00024657,2]
[336911112,1725240641504,-503.54598356,0.00024657,2]
[336911114,1725240641514,-853.05,0.00024657,2]
[336911115,1725240641525,-500.0,0.00024657,2]
[336911116,1725240641534,-500.93254474,0.00024657,2]
[336911117,1725240641544,-500.0,0.00024657,2]
[336911118,1725240641554,-500.0,0.00024657,2]
[336911119,1725240641563,-500.0,0.00024657,2]
[336911120,1725240641572,-500.0,0.00024657,2]
[336911121,1725240641582,-500.96254311,0.00024657,2]
[336911122,1725240641591,-667.43,0.00024657,2]
[336911123,1725240641601,-351.91013361,0.00024657,2]
[336911124,1725240641611,-500.0,0.00024657,2]
[336911125,1725240641621,-500.0,0.00024657,2]
[336911126,1725240641630,-501.37636232,0.00024657,2]
[336911127,1725240641639,-500.0,0.00024657,2]
[336911128,1725240641650,-500.0,0.00024657,2]
[336911129,1725240641659,-1011.5,0.00024657,2]
[336911130,1725240641668,-500.0,0.00024657,2]
[336911131,1725240641678,-662.74,0.00024657,2]
[336911132,1725240641687,-500.0,0.00024657,2]
[336911133,1725240641696,-500.0,0.00024657,2]
[336911134,1725240641705,-500.0,0.00024657,2]
[336911135,1725240641715,-839.14,0.00024657,2]
[336911136,1725240641725,-513.10319101,0.00024657,2]
[336911137,1725240641734,-500.0,0.00024657,4]
[336911138,1725240641743,-500.0,0.00024657,2]
[336911139,1725240641760,-500.0,0.00024657,2]
[336911140,1725240641769,-567.28,0.00024657,2]
[336911141,1725240641778,-500.0,0.00024657,2]
[336911142,1725240641787,-500.0,0.00024657,2]
[336911143,1725240641796,-269.29838161,0.00024657,2]
[336911144,1725240641823,-230.70161839,0.00024657,2]
[336911145,1725240641831,-500.0,0.00024657,2]
[336911146,1725240641840,-500.0,0.00024657,2]
[336911147,1725240641849,-500.0,0.00024657,2]
[336911148,1725240641858,-500.0,0.00024657,2]
[336911149,1725240641867,-464.41538944,0.00024657,2]
[336911150,1725240641876,-500.0,0.00024657,2]
[336911151,1725240641885,-500.0,0.00024657,2]
[336911152,1725240641894,-500.0,0.00024657,2]
[336911153,1725240641903,-500.0,0.00024657,2]
[336911154,1725240641913,-617.55,0.00024657,2]
[336911155,1725240641924,-543.52,0.00024657,2]
[336911156,1725240641936,-500.0,0.00024657,2]
[336911157,1725240641944,-500.0,0.00024657,2]
[336911158,1725240641955,-500.0,0.00024657,2]
[336911159,1725240641964,-500.0,0.00024657,2]
[336911160,1725240641974,-461.98543976,0.00024657,2]
[336911161,1725240641983,-500.0,0.00024657,2]
[336911162,1725240641992,-500.0,0.00024657,2]
[336911163,1725240642005,-500.0,0.00024657,2]
[336911164,1725240642014,-500.0,0.00024657,2]
[336911165,1725240642024,-500.0,0.00024657,2]
[336911166,1725240642034,-500.0,0.00024657,2]
[336911167,1725240642044,-500.0,0.00024657,2]
[336911168,1725240642056,-500.0,0.00024657,2]
[336911169,1725240642066,-558.85,0.00024657,2]
[336911170,1725240642075,-4426.47,0.00024657,2]
[336911171,1725240642085,-500.0,0.00024657,2]
[336911172,1725240642094,-500.0,0.00024657,2]
[336911173,1725240642104,-500.0,0.00024657,2]
[336911174,1725240642114,-500.0,0.00024657,2]
[336911175,1725240642123,-500.0,0.00024657,2]
[336911176,1725240642133,-500.0,0.00024657,2]
[336911177,1725240642142,-500.0,0.00024657,2]
[336911178,1725240642151,-500.0,0.00024657,2]
[336911179,1725240642160,-500.0,0.00024657,2]
[336911180,1725240642170,-500.0,0.00024657,2]
[336911181,1725240642179,-170.48473044,0.00024657,2]
[336911182,1725240642188,-494.42282197,0.00024657,2]
[336911189,1725240642688,-21.16194579,0.00024657,2]
[336911190,1725240642697,-500.0,0.00024657,2]
[336911192,1725240642707,-500.0,0.00024657,2]
[336911193,1725240642716,-500.0,0.00024657,2]
[336911194,1725240642726,-500.0,0.00024657,2]
[336911195,1725240642735,-306.90346534,0.00024657,2]
[336911196,1725240642745,-500.0,0.00024657,2]
[336911197,1725240642757,-500.0,0.00024657,2]
[336911198,1725240642767,-500.0,0.00024657,2]
[336911199,1725240642776,-500.0,0.00024657,2]
[336911200,1725240642785,-500.0,0.00024657,2]
[336911201,1725240642795,-1453.82,0.00024657,2]
[336911202,1725240642804,-1453.82,0.00024657,2]
[336911203,1725240642813,-1453.82,0.00024657,2]
[336911204,1725240642823,-1453.82,0.00024657,2]
[336911205,1725240642832,-1453.82,0.00024657,2]
[336911206,1725240642842,-1453.82,0.00024657,2]
[336911207,1725240642851,-1453.82,0.00024657,2]
[336911208,1725240642861,-1453.82,0.00024657,2]
[336911209,1725240642870,-1453.82,0.00024657,2]
[336911210,1725240642880,-1453.82,0.00024657,2]
[336911211,1725240642889,-1453.82,0.00024657,2]
[336911212,1725240642898,-500.0,0.00024657,2]
[336911213,1725240642907,-500.0,0.00024657,2]
[336911214,1725240642917,-500.0,0.00024657,2]
[336911215,1725240642926,-500.0,0.00024657,2]
[336911216,1725240642935,-1467.37,0.00024657,2]
[336911217,1725240642945,-2444.42,0.00024657,2]
[336911218,1725240642954,-1434.26,0.00024657,2]
[336911219,1725240642963,-500.0,0.00024657,2]
[336911220,1725240642972,-500.0,0.00024657,2]
[336911221,1725240642981,-504.2684472,0.00024657,2]
[336911222,1725240642991,-500.0,0.00024657,2]
[336911223,1725240643000,-500.0,0.00024657,2]
[336911224,1725240643009,-500.0,0.00024657,2]
[336911226,1725240643019,-500.0,0.00024657,2]
[336911227,1725240643028,-500.0,0.00024657,2]
[336911228,1725240643037,-500.0,0.00024657,2]
[336911229,1725240643047,-723.07,0.00024657,2]
[336911230,1725240643056,-500.0,0.00024657,2]
[336911231,1725240643066,-579.2,0.00024657,2]
[336911232,1725240643075,-1390.82,0.00024657,2]
[336911233,1725240643085,-897.07,0.00024657,2]
[336911234,1725240643094,-500.0,0.00024657,2]
[336911235,1725240643103,-1489.0,0.00024657,2]
[336911236,1725240643113,-500.0,0.00024657,2]
[336911238,1725240643122,-500.0,0.00024657,2]
[336911240,1725240643131,-500.0,0.00024657,2]
[336911242,1725240643140,-500.0,0.00024657,2]
[336911244,1725240643149,-641.43,0.00024657,2]
[336911246,1725240643158,-500.0,0.00024657,2]
[336911248,1725240643167,-500.0,0.00024657,2]
[336911249,1725240643176,-500.0,0.00024657,2]
[336911250,1725240643185,-536.02,0.00024657,2]
[336911251,1725240643194,-758.84,0.00024657,2]
[336911252,1725240643203,-500.0,0.00024657,2]
[336911253,1725240643212,-500.0,0.00024657,2]
[336911254,1725240643222,-500.0,0.00024657,2]
[336911255,1725240643231,-841.03,0.00024657,2]
[336911256,1725240643241,-500.0,0.00024657,2]
[336911257,1725240643252,-500.0,0.00024657,2]
[336911258,1725240643261,-2368.41,0.00024657,2]
[336911259,1725240643270,-500.0,0.00024657,2]
[336911260,1725240643279,-500.0,0.00024657,2]
[336911261,1725240643288,-500.0,0.00024657,2]
[336911262,1725240643297,-500.0,0.00024657,2]
[336911263,1725240643307,-500.0,0.00024657,2]
[336911264,1725240643317,-3334.61,0.00024657,2]
[336911265,1725240643328,-500.0,0.00024657,2]
[336911266,1725240643337,-500.0,0.00024657,2]
[336911267,1725240643348,-500.0,0.00024657,2]
[336911268,1725240643359,-500.0,0.00024657,2]
[336911269,1725240643369,-1651.33,0.00024657,2]
[336911270,1725240643379,-520.20016374,0.00024657,2]
[336911271,1725240643389,-500.0,0.00024657,2]
[336911272,1725240643400,-500.0,0.00024657,2]
[336911273,1725240643411,-2180.02,0.00024657,2]
[336911274,1725240643422,-500.0,0.00024657,2]
[336911275,1725240643432,-1145.49,0.00024657,2]
[336911276,1725240643443,-500.0,0.00024657,2]
[336911277,1725240643455,-500.0,0.00024657,2]
[336911278,1725240643464,-500.0,0.00024657,2]
[336911279,1725240643472,-658.96,0.00024657,2]
[336911280,1725240643482,-500.0,0.00024657,2]
[336911281,1725240643491,-500.0,0.00024657,2]
[336911282,1725240643500,-500.0,0.00024657,2]
[336911283,1725240643509,-500.0,0.00024657,2]
[336911284,1725240643519,-1761.24,0.00024657,2]
[336911285,1725240643528,-500.0,0.00024657,2]
[336911286,1725240643537,-500.0,0.00024657,2]
[336911287,1725240643546,-500.0,0.00024657,2]
[336911288,1725240643555,-500.0,0.00024657,2]
[336911289,1725240643563,-500.0,0.00024657,2]
[336911290,1725240643573,-652.53,0.00024657,2]
[336911291,1725240643583,-500.0,0.00024657,2]
[336911292,1725240643593,-503.18162228,0.00024657,2]
[336911293,1725240643602,-2881.66,0.00024657,2]
[336911294,1725240643611,-2604.04,0.00024657,2]
[336911295,1725240643620,-500.9144571,0.00024657,2]
[336911296,1725240643629,-500.0,0.00024657,2]
[336911297,1725240643638,-500.0,0.00024657,2]
[336911298,1725240643647,-500.0,0.00024657,2]
[336911299,1725240643658,-500.0,0.00024657,2]
[336911300,1725240643668,-500.0,0.00024657,2]
[336911301,1725240643677,-500.0,0.00024657,2]
[336911302,1725240643686,-500.0,0.00024657,2]
[336911303,1725240643695,-500.0,0.00024657,2]
[336911304,1725240643704,-1150.11,0.00024657,2]
[336911305,1725240643713,-500.0,0.00024657,2]
[336911306,1725240643723,-13990.28,0.00024657,2]
[336911307,1725240643732,-500.0,0.00024657,2]
[336911308,1725240643741,-500.0,0.00024657,2]
[336911309,1725240643750,-500.0,0.00024657,2]
[336911310,1725240643760,-1653.74,0.00024657,2]
[336911311,1725240643769,-500.0,0.00024657,2]
[336911312,1725240643778,-302.37385269,0.00024657,2]
[336911313,1725240643787,-500.0,0.00024657,2]
[336911314,1725240643796,-500.0,0.00024657,2]
[336911315,1725240643806,-500.0,0.00024657,2]
[336911316,1725240643815,-500.0,0.00024657,2]
[336911317,1725240643825,-500.0,0.00024657,2]
[336911318,1725240643834,-500.0,0.00024657,2]
[336911319,1725240643844,-500.0,0.00024657,2]
[336911320,1725240643854,-1948.43,0.00024657,2]
[336911321,1725240643863,-2663.64,0.00024657,2]
[336911322,1725240643873,-952.34,0.00024657,2]
[336911323,1725240643882,-500.0,0.00024657,2]
[336911324,1725240643891,-569.76,0.00024657,2]
[336911325,1725240643900,-500.0,0.00024657,2]
[336911326,1725240643909,-500.0,0.00024657,2]
[336911327,1725240643918,-500.0,0.00024657,2]
[336911328,1725240643927,-500.0,0.00024657,2]
[336911329,1725240643936,-500.0,0.00024657,2]
[336911330,1725240643946,-500.0,0.00024657,2]
[336911331,1725240643955,-1076.05,0.00024657,2]
[336911332,1725240643966,-500.0,0.00024657,2]
[336911333,1725240643975,-667.31,0.00024657,2]
[336911334,1725240643984,-873.48,0.00024657,2]
[336911335,1725240643993,-500.0,0.00024657,2]
[336911336,1725240644002,-500.0,0.00024657,2]
[336911337,1725240644011,-500.0,0.00024657,2]
[336911338,1725240644020,-511.11378814,0.00024657,2]
[336911339,1725240644029,-500.0,0.00024657,2]
[336911340,1725240644038,-1201.15,0.00024657,2]
[336911341,1725240644048,-500.0,0.00024657,2]
[336911342,1725240644058,-3028.14,0.00024657,2]
[336911343,1725240644067,-500.0,0.00024657,2]
[336911344,1725240644076,-500.0,0.00024657,2]
[336911345,1725240644086,-500.89437098,0.00024657,2]
[336911346,1725240644095,-500.0,0.00024657,2]
[336911347,1725240644104,-787.78,0.00024657,2]
[336911348,1725240644113,-306.76140951,0.00024657,2]
[336911349,1725240644122,-500.0,0.00024657,2]
[336911350,1725240644131,-500.0,0.00024657,2]
[336911351,1725240644140,-222.31699498,0.00024657,2]
[336911352,1725240644150,-500.0,0.00024657,2]
[336911353,1725240644159,-799.39,0.00024657,2]
[336911354,1725240644168,-500.0,0.00024657,2]
[336911355,1725240644177,-278.83849788,0.00024657,2]
[336911356,1725240644186,-1965.64,0.00024657,2]
[336911357,1725240644195,-500.0,0.00024657,2]
[336911358,1725240644204,-1707.72,0.00024657,2]
[336911359,1725240644213,-500.0,0.00024657,2]
[336911360,1725240644221,-500.0,0.00024657,2]
[336911361,1725240644231,-500.0,0.00024657,2]
[336911362,1725240644240,-519.62,0.00024657,2]
[336911363,1725240644250,-934.85,0.00024657,2]
[336911364,1725240644259,-500.0,0.00024657,2]
[336911365,1725240644268,-500.0,0.00024657,2]
[336911366,1725240644277,-500.0,0.00024657,2]
[336911367,1725240644286,-500.0,0.00024657,2]
[336911368,1725240644295,-500.0,0.00024657,2]
[336911369,1725240644305,-436.35218732,0.00024657,2]
[336911370,1725240644316,-500.0,0.00024657,2]
[336911371,1725240644326,-500.0,0.00024657,2]
[336911372,1725240644337,-500.0,0.00024657,2]
[336911373,1725240644348,-1407.1,0.00024657,2]
[336911374,1725240644359,-553.34,0.00024657,2]
[336911375,1725240644371,-500.0,0.00024657,2]
[336911376,1725240644380,-500.0,0.00024657,2]
[336911377,1725240644389,-500.0,0.00024657,2]
[336911378,1725240644400,-1253.62,0.00024657,2]
[336911379,1725240644411,-500.0,0.00024657,2]
[336911380,1725240644421,-1759.21,0.00024657,2]
[336911381,1725240644430,-500.0,0.00024657,2]
[336911382,1725240644439,-1731.52,0.00024657,2]
[336911383,1725240644450,-1242.12,0.00024657,2]
[336911384,1725240644461,-500.0,0.00024657,2]
[336911385,1725240644470,-500.0,0.00024657,2]
[336911386,1725240644479,-1101.98,0.00024657,2]
[336911387,1725240644489,-500.0,0.00024657,2]
[336911388,1725240644498,-521.45029142,0.00024657,2]
[336911389,1725240644508,-332.55119175,0.00024657,2]
[336911390,1725240644518,-1976.33,0.00024657,2]
[336911391,1725240644527,-1843.11,0.00024657,2]
[336911392,1725240644536,-500.0,0.00024657,2]
[336911393,1725240644545,-892.81,0.00024657,2]
[336911394,1725240644556,-500.0,0.00024657,2]
[336911395,1725240644565,-500.0,0.00024657,2]
[336911396,1725240644574,-1243.03,0.00024657,2]
[336911397,1725240644583,-500.0,0.00024657,2]
[336911398,1725240644592,-500.0,0.00024657,2]
[336911399,1725240644601,-1010.28,0.00024657,2]
[336911400,1725240644612,-568.68681265,0.00024657,2]
[336911401,1725240644622,-723.05,0.00024657,2]
[336911402,1725240644634,-502.07144363,0.00024657,2]
[336911403,1725240644643,-2805.27,0.00024657,2]
[336911404,1725240644654,-500.0,0.00024657,2]
[336911405,1725240644662,-523.37598791,0.00024657,2]
[336911406,1725240644671,-500.0,0.00024657,2]
[336911407,1725240644680,-500.0,0.00024657,2]
[336911408,1725240644689,-617.73,0.00024657,2]
[336911409,1725240644698,-504.24259106,0.00024657,2]
[336911410,1725240644707,-520.82393981,0.00024657,2]
[336911411,1725240644716,-639.92,0.00024657,2]
[336911412,1725240644725,-500.0,0.00024657,2]
[336911413,1725240644735,-500.0,0.00024657,2]
[336911414,1725240644743,-502.67013471,0.00024657,2]
[336911415,1725240644755,-500.0,0.00024657,2]
[336911416,1725240644767,-500.0,0.00024657,2]
[336911417,1725240644776,-718.09,0.00024657,2]
[336911418,1725240644785,-750.0,0.00024657,2]
[336911419,1725240644794,-500.0,0.00024657,2]
[336911420,1725240644803,-8775.64,0.00024657,2]
[336911421,1725240644812,-500.0,0.00024657,2]
[336911422,1725240644824,-500.0,0.00024657,2]
[336911423,1725240644835,-500.0,0.00024657,2]
[336911424,1725240644844,-1140.12,0.00024657,2]
[336911425,1725240644855,-500.0,0.00024657,2]
[336911426,1725240644864,-5716.59,0.00024657,2]
[336911427,1725240644874,-500.0,0.00024657,2]
[336911428,1725240644883,-500.0,0.00024657,2]
[336911429,1725240644892,-500.0,0.00024657,2]
[336911430,1725240644902,-500.0,0.00024657,2]
[336911431,1725240644911,-500.0,0.00024657,2]
[336911432,1725240644920,-500.0,0.00024657,2]
[336911433,1725240644929,-500.0,0.00024657,2]
[336911434,1725240644938,-500.0,0.00024657,2]
[336911435,1725240644948,-500.0,0.00024657,2]
[336911436,1725240644957,-500.0,0.00024657,2]
[336911437,1725240644967,-1679.19,0.00024657,2]
[336911438,1725240644977,-500.0,0.00024657,2]
[336911439,1725240644986,-500.0,0.00024657,2]
[336911440,1725240644995,-500.0,0.00024657,2]
[336911441,1725240645008,-500.0,0.00024657,2]
[336911442,1725240645017,-500.0,0.00024657,2]
[336911443,1725240645027,-503.28198584,0.00024657,2]
[336911444,1725240645036,-3521.4,0.00024657,2]
[336911445,1725240645045,-500.0,0.00024657,2]
[336911446,1725240645055,-500.0,0.00024657,2]
[336911447,1725240645066,-500.0,0.00024657,2]
[336911448,1725240645075,-430.62158138,0.00024657,2]
[336911449,1725240645084,-1973.8,0.00024657,2]
[336911450,1725240645093,-500.0,0.00024657,2]
[336911451,1725240645102,-1847.46,0.00024657,2]
[336911452,1725240645112,-1812.06,0.00024657,2]
[336911453,1725240645121,-500.44945894,0.00024657,2]
[336911454,1725240645130,-500.0,0.00024657,2]
[336911455,1725240645139,-500.0,0.00024657,2]
[336911456,1725240645148,-500.0,0.00024657,2]
[336911457,1725240645159,-500.0,0.00024657,2]
[336911458,1725240645168,-500.0,0.00024657,2]
[336911459,1725240645177,-2193.98,0.00024657,2]
[336911460,1725240645186,-500.0,0.00024657,2]
[336911461,1725240645195,-1474.84,0.00024657,2]
[336911462,1725240645205,-1674.05,0.00024657,2]
[336911463,1725240645214,-500.0,0.00024657,2]
[336911464,1725240645224,-501.5575265,0.00024657,2]
[336911465,1725240645233,-535.46,0.00024657,2]
[336911466,1725240645243,-504.15875801,0.00024657,2]
[336911467,1725240645256,-500.61000258,0.00024657,2]
[336911468,1725240645267,-370.15246589,0.00024657,2]
[336911469,1725240645276,-500.0,0.00024657,2]
[336911470,1725240645286,-500.80315554,0.00024657,2]
[336911471,1725240645295,-504.35120959,0.00024657,2]
[336911472,1725240645304,-503.30300795,0.00024657,2]
[336911473,1725240645313,-500.0,0.00024657,2]
[336911474,1725240645323,-500.0,0.00024657,2]
[336911475,1725240645332,-326.14200045,0.00024657,2]
[336911476,1725240645342,-500.0,0.00024657,2]
[336911477,1725240645459,-299.50221561,0.00024657,2]
[336911478,1725240645486,-500.0,0.00024657,2]
[336911479,1725240645496,-614.57,0.00024657,2]
[336911480,1725240645508,-500.0,0.00024657,2]
[336911481,1725240645517,-500.0,0.00024657,2]
[336911482,1725240645526,-500.0,0.00024657,2]